fUST/lending_fUST_20250906
["ID","MTS","AMOUNT","RATE_DAILY","PERIOD"]
[383708710,1757095868360,-197.11198432,0.0001601,2]
[383708711,1757095869143,-134.07497004,0.00013698,2]
[383708712,1757095869505,-322.03153825,0.00013698,2]
[383708713,1757095869518,-23.89349171,0.00013698,2]
[383708714,1757095869529,-480.0,0.00013698,2]
[383708715,1757095869539,-480.0,0.00013698,2]
[383708716,1757095869550,-480.0,0.00013698,2]
[383708717,1757095869560,-151.0,0.00013972,2]
[383708718,1757095869570,-412.32183829,0.00013972,2]
[383708719,1757095869582,-67.67816171,0.00013972,2]
[383708720,1757095869592,-480.0,0.00013972,2]
[383708721,1757095869602,-16.61533824,0.00014213,2]
[383708722,1757095869618,-134.38466176,0.00014213,2]
[383708723,1757095869629,-480.0,0.00014246,2]
[383708724,1757095869639,-733.72146168,0.0001601,2]
[383708725,1757095869649,-930.833446,0.0001601,2]
[383708726,1757095869659,-151.0,0.0001601,2]
[383708727,1757095869668,-151.0,0.0001601,2]
[383708728,1757095869678,-3000.0,0.0001602,2]
[383708729,1757095869688,-3000.0,0.0001603,2]
[383708730,1757095869698,-3000.0,0.0001604,2]
[383708731,1757095869707,-151.0,0.0001604,2]
[383708732,1757095869716,-3000.0,0.0001605,2]
[383708733,1757095869726,-3000.0,0.0001606,2]
[383708734,1757095869736,-3000.0,0.0001607,2]
[383708735,1757095869746,-3000.0,0.0001608,2]
[383708736,1757095869756,-151.0,0.0001608,2]
[383708737,1757095869765,-151.0,0.0001608,2]
[383708738,1757095869774,-190.027662,0.0001608,2]
[383708739,1757095869784,-186.857002,0.0001608,2]
[383708740,1757095869794,-186.857002,0.0001608,2]
[383708741,1757095869803,-186.857002,0.0001608,2]
[383708742,1757095869813,-186.857002,0.0001608,2]
[383708743,1757095869823,-151.0,0.0001608,2]
[383708744,1757095869833,-3000.0,0.0001609,2]
[383708745,1757095869843,-3000.0,0.000161,2]
[383708746,1757095869853,-3000.0,0.0001611,2]
[383708747,1757095869863,-3251.809385,0.0001612,2]
[383708748,1757095869873,-226.02914947,0.00016134,2]
[383708749,1757095869883,-480.0,0.00016164,2]
[383708750,1757095869893,-480.0,0.00016164,2]
[383708751,1757095869902,-480.0,0.00016164,2]
[383708752,1757095869912,-151.0,0.00016164,2]
[383708753,1757095869922,-151.0,0.00016164,2]
[383708754,1757095869932,-151.0,0.00016164,2]
[383708755,1757095869941,-151.0,0.00016164,2]
[383708756,1757095869951,-151.0,0.00016164,2]
[383708757,1757095869961,-151.0,0.00016164,2]
[383708758,1757095869971,-151.0,0.00016164,2]
[383708759,1757095869981,-151.0,0.00016164,2]
[383708760,1757095869991,-169.326286,0.00016164,2]
[383708761,1757095870000,-480.0,0.00016164,2]
[383708762,1757095870010,-480.0,0.00016164,2]
[383708763,1757095870019,-480.0,0.00016164,2]
[383708765,1757095870028,-151.0,0.00016164,2]
[383708766,1757095870038,-151.0,0.00016164,2]
[383708767,1757095870047,-151.0,0.00016164,2]
[383708768,1757095870056,-151.0,0.00016164,2]
[383708769,1757095870066,-477.31873216,0.00016164,2]
[383708772,1757095887348,300.0,0.000131,2]
[383708773,1757095896042,300.0,0.000131,2]
[383708775,1757095936328,167.3906611,0.00012945,2]
[383708776,1757095952339,-9109.41252925,0.00013134,2]
[383708777,1757095952425,-10000.01,0.00013134,2]
[383708778,1757095952582,-10000.01,0.00013134,2]
[383708779,1757095952711,-10000.01,0.00013134,2]
[383708780,1757095952868,-10000.01,0.00013134,2]
[383708781,1757095953021,-10000.01,0.00013134,2]
[383708782,1757095953174,-10000.01,0.00013134,2]
[383708783,1757095953294,-10000.01,0.00013134,2]
[383708784,1757095953425,-10000.01,0.00013134,2]
[383708785,1757095953562,-10000.01,0.00013134,2]
[383708786,1757095962264,-10000.01,0.00013134,2]
[383708787,1757095962417,-10000.01,0.00013134,2]
[383708788,1757095962534,-10000.01,0.00013134,2]
[383708789,1757095962683,-10000.01,0.00013134,2]
[383708790,1757095962820,-10000.01,0.00013134,2]
[383708791,1757095962977,-10000.01,0.00013134,2]
[383708792,1757095963114,-10000.01,0.00013134,2]
[383708793,1757095963242,-10000.01,0.00013134,2]
[383708794,1757095963377,-10000.01,0.00013134,2]
[383708795,1757095963513,-10000.01,0.00013134,2]
[383708796,1757095968345,6393.40509903,0.00013003,2]
[383708797,1757095976767,1700.52909323,0.00013003,2]
[383708798,1757095986195,8299.48090677,0.00013003,2]
[383708799,1757095986219,5547.27677114,0.00013003,2]
[383708800,1757095988279,203.19,0.00012329,2]
[383708801,1757095994618,300.0,0.00013002,2]
[383708802,1757095998780,640.56,0.00012329,2]
[383708803,1757096003288,992.61018774,0.00013033,2]
[383708804,1757096004079,300.0,0.00013002,2]
[383708805,1757096009463,533.8,0.00012329,2]
[383708806,1757096012694,300.0,0.00013002,2]
[383708807,1757096019354,10000.0,0.00025,30]
[383708808,1757096019912,444.84,0.00012329,2]
[383708809,1757096021597,300.0,0.00013002,2]
[383708810,1757096030451,300.0,0.00013002,2]
[383708811,1757096030482,137.73304112,0.00012329,2]
[383708812,1757096030505,232.96695888,0.00012329,2]
[383708813,1757096041203,308.91,0.00012329,2]
[383708814,1757096046998,300.0,0.00013002,2]
[383708815,1757096051740,257.43,0.00012329,2]
[383708816,1757096062167,214.52,0.00012329,2]
[383708817,1757096071640,300.0,0.00013002,2]
[383708818,1757096072987,178.77,0.00012329,2]
[383708819,1757096083581,893.87,0.00012329,2]
[383708820,1757096095454,423.46088198,0.00013001,2]
[383708821,1757096097763,-392.58854141,0.00013132,2]
[383708822,1757096099799,-30.87234057,0.00013132,2]
[383708823,1757096099820,-146.95922205,0.00013133,2]
[383708824,1757096102525,-221.14646626,0.00013133,2]
[383708825,1757096119863,1500.0,0.00013001,2]
[383708826,1757096144762,1500.0,0.00013001,2]
[383708827,1757096153134,1500.0,0.00013001,2]
[383708828,1757096169714,1500.0,0.00013001,2]
[383708829,1757096172435,151.0,0.000131,2]
[383708830,1757096178109,208.9721081,0.00013001,2]
[383708831,1757096195823,514.400295,0.00013001,2]
[383708832,1757096200518,-177.47639593,0.00013132,2]
[383708833,1757096204720,-477.1484682,0.00013132,2]
[383708834,1757096206313,-371.49130297,0.00013132,2]
[383708835,1757096207716,-173.8838329,0.00013132,2]
[383708836,1757096207738,-10.40500622,0.00013132,2]
[383708837,1757096212230,-195.12853109,0.00013132,2]
[383708838,1757096213942,-94.46646269,0.00013132,2]
[383708839,1757096213965,-72.63803658,0.00013133,2]
[383708840,1757096213988,-38.88948353,0.00013133,2]
[383708841,1757096216464,2702.17671492,0.00012272,2]
[383708842,1757096216486,10000.01,0.00012272,2]
[383708843,1757096216507,10000.01,0.00012272,2]
[383708844,1757096216530,10000.01,0.00012272,2]
[383708845,1757096216552,10000.01,0.00012272,2]
[383708846,1757096216574,10000.01,0.00012272,2]
[383708847,1757096216599,10000.01,0.00012272,2]
[383708848,1757096216622,8655.76021018,0.00012272,2]
[383708849,1757096216880,-152.0,0.00013133,2]
[383708850,1757096219854,1344.24978982,0.00013002,2]
[383708851,1757096219877,267.27773029,0.00013002,2]
[383708852,1757096220117,-309.11051647,0.00013133,2]
[383708853,1757096220140,-64.48593716,0.00013133,2]
[383708854,1757096221640,-384.55992679,0.00013133,2]
[383708855,1757096224231,-200.34620906,0.00013133,2]
[383708856,1757096227940,611.91,0.00012329,2]
[383708857,1757096229680,-99.65379094,0.00013133,2]
[383708858,1757096229704,-50.95413605,0.00013133,2]
[383708859,1757096229731,-91.66627863,0.00013133,2]
[383708860,1757096231835,-197.19904253,0.00013133,2]
[383708861,1757096234419,-260.54907229,0.00013133,2]
[383708862,1757096237364,178.88526289,0.00013002,2]
[383708863,1757096237389,823.91569458,0.00013002,2]
[383708864,1757096238483,1103.24,0.00012329,2]
[383708865,1757096244438,203.9665338,0.00013032,2]
[383708866,1757096245792,742.25188518,0.00013002,2]
[383708867,1757096249250,1035.18,0.00012329,2]
[383708868,1757096254946,742.25188518,0.00013002,2]
[383708869,1757096259741,906.51,0.00012329,2]
[383708870,1757096260681,-152.0,0.00013133,2]
[383708871,1757096262777,-326.70069019,0.00013133,2]
[383708872,1757096263276,742.25188518,0.00013002,2]
[383708873,1757096265133,-263.55119499,0.00013133,2]
[383708874,1757096265158,-48.95815747,0.00013133,2]
[383708875,1757096269465,-171.63745987,0.00013133,2]
[383708876,1757096270532,822.45,0.00012329,2]
[383708877,1757096271993,-187.73810403,0.00013133,2]
[383708878,1757096272015,-81.44675278,0.00013133,2]
[383708879,1757096272432,1712.84177898,0.00013002,2]
[383708881,1757096274470,-258.46487411,0.00013133,2]
[383708882,1757096274496,-329.26859235,0.00013133,2]
[383708883,1757096279676,-196.63346584,0.00013133,2]
[383708884,1757096279698,-66.56653416,0.00013133,2]
[383708885,1757096280765,180.94732718,0.00013002,2]
[383708886,1757096281228,733.32,0.00012329,2]
[383708887,1757096289890,300.0,0.00013002,2]
[383708888,1757096292019,651.07,0.00012329,2]
[383708889,1757096298259,300.0,0.00013002,2]
[383708890,1757096302523,575.86,0.00012329,2]
[383708891,1757096313314,479.88,0.00012329,2]
[383708892,1757096315775,300.0,0.00013002,2]
[383708893,1757096324006,300.0,0.00013002,2]
[383708894,1757096324087,427.65,0.00012329,2]
[383708895,1757096335176,495.14,0.00012329,2]
[383708896,1757096340340,300.0,0.00013002,2]
[383708897,1757096345685,412.61,0.00012329,2]
[383708898,1757096348611,300.0,0.00013002,2]
[383708899,1757096356134,343.84,0.00012329,2]
[383708900,1757096365740,300.0,0.00013002,2]
[383708901,1757096366557,286.54,0.00012329,2]
[383708902,1757096372928,-176.47737352,0.00013133,2]
[383708903,1757096374023,469.35364062,0.00013002,2]
[383708904,1757096377005,210.94398337,0.00012329,2]
[383708905,1757096377026,27.83601663,0.00012329,2]
[383708906,1757096387490,198.98,0.00012329,2]
[383708907,1757096390764,292.8762671,0.00013002,2]
[383708908,1757096398088,165.82,0.00012329,2]
[383708909,1757096398997,292.8762671,0.00013002,2]
[383708910,1757096402769,-169.35364062,0.00013133,2]
[383708911,1757096402792,-7.1237329,0.00013133,2]
[383708912,1757096408636,522.03305982,0.00012329,2]
[383708913,1757096408659,307.09694018,0.00012329,2]
[383708914,1757096416048,621.0759602,0.00013,2]
[383708915,1757096425074,621.0759602,0.00013,2]
[383708916,1757096442987,621.0759602,0.00013,2]
[383708917,1757096451412,621.0759602,0.00013,2]
[383708918,1757096464783,3384.6877574,0.00012228,2]
[383708919,1757096468017,621.0759602,0.00013,2]
[383708920,1757096476388,621.0759602,0.00013,2]
[383708921,1757096484845,160.0,8.1e-07,2]
[383708922,1757096485995,160.0,8.1e-07,2]
[383708923,1757096487121,160.0,8.1e-07,2]
[383708924,1757096488319,160.0,8.1e-07,2]
[383708925,1757096491346,1782.7147798,0.00012228,2]
[383708926,1757096494172,159.05476142,0.00013,2]
[383708927,1757096494196,462.02119878,0.00013,2]
[383708928,1757096502518,621.0759602,0.00013,2]
[383708930,1757096519627,1214.89389417,0.00012999,2]
[383708931,1757096527982,1214.89389417,0.00012999,2]
[383708933,1757096543971,6487.12505268,0.00012182,2]
[383708934,1757096543995,3512.87494732,0.00012182,2]
[383708935,1757096545060,1214.89389417,0.00012999,2]
[383708936,1757096553146,1214.89389417,0.00012999,2]
[383708937,1757096569256,1214.89389417,0.00012999,2]
[383708938,1757096577719,1214.89389417,0.00012999,2]
[383708939,1757096593974,1214.89389417,0.00012999,2]
[383708940,1757096602249,412.66558183,0.00012999,2]
[383708941,1757096602272,802.22831234,0.00012999,2]
[383708942,1757096619275,1214.89389417,0.00012999,2]
[383708943,1757096628278,1214.89389417,0.00012999,2]
[383708944,1757096652397,1214.89389417,0.00012999,2]
[383708945,1757096676395,1214.89389417,0.00012999,2]
[383708946,1757096701350,1214.89389417,0.00012999,2]
[383708949,1757096725778,660.09202789,0.00012999,2]
[383708950,1757096727745,1000.0,0.00012181,2]
[383708952,1757096742499,304.06686318,0.00012999,2]
[383708959,1757096789747,1909.98367718,0.0001274,2]
[383708981,1757096897408,8090.02632282,0.000125,2]
[383708982,1757096897435,3368.46418636,0.000125,2]
[383708983,1757096900005,151.0,0.00012998,2]
[383708985,1757096910294,284.57737434,0.0001,2]
[383708991,1757096917175,314.0979329,6.104e-05,2]
[383708992,1757096919922,1000.0,0.0001,2]
[383708993,1757096926139,9000.01,0.0001,2]
[383708994,1757096926161,8639.42423557,0.0001,2]
[383708995,1757096928057,1360.58576443,0.0001,2]
[383708996,1757096928079,364.62595369,0.0001,2]
[383709001,1757096939876,621.0759602,0.00012998,2]
[383709003,1757096957179,300.0,0.00012998,2]
[383709004,1757096966137,621.0759602,0.00012998,2]
[383709013,1757096990928,621.0759602,0.00012998,2]
[383709020,1757097016797,621.0759602,0.00012998,2]
[383709071,1757097032262,-621.0759602,0.00013129,2]
[383709072,1757097032272,-300.0,0.00013132,2]
[383709073,1757097032281,-151.0,0.00013133,2]
[383709074,1757097032295,-154.15994466,0.00013133,2]
[383709075,1757097032308,-413.96226294,0.00013133,2]
[383709076,1757097032321,-160.98965334,0.00013133,2]
[383709077,1757097032334,-500.0,0.00013133,2]
[383709078,1757097032346,-500.0,0.00013133,2]
[383709079,1757097032356,-500.0,0.00013133,2]
[383709080,1757097032369,-650.95153159,0.00013133,2]
[383709081,1757097032380,-500.0,0.00013133,2]
[383709082,1757097032392,-274.80620456,0.00013133,2]
[383709083,1757097032405,-500.0,0.00013133,2]
[383709085,1757097032417,-500.0,0.00013133,2]
[383709087,1757097032430,-500.0,0.00013133,2]
[383709091,1757097032443,-500.0,0.00013133,2]
[383709093,1757097032459,-500.0,0.00013133,2]
[383709094,1757097032473,-500.0,0.00013133,2]
[383709095,1757097032485,-500.0,0.00013133,2]
[383709096,1757097032498,-500.0,0.00013133,2]
[383709097,1757097032509,-500.0,0.00013133,2]
[383709098,1757097032522,-211.54063238,0.00013133,2]
[383709099,1757097032534,-500.0,0.00013133,2]
[383709100,1757097032547,-500.0,0.00013133,2]
[383709101,1757097032560,-500.0,0.00013133,2]
[383709102,1757097032574,-500.0,0.00013133,2]
[383709103,1757097032586,-444.56191748,0.00013133,2]
[383709104,1757097032597,-10774.49683635,0.00013134,2]
[383709105,1757097032617,-730.07117585,0.00013134,2]
[383709106,1757097032631,-159385.82945855,0.00013134,2]
[383709107,1757097032643,-500.0,0.00013227,2]
[383709108,1757097032655,-50000.0,0.00013228,2]
[383709109,1757097032668,-621.07596019,0.00013246,2]
[383709110,1757097032680,-621.07596019,0.00013364,2]
[383709111,1757097032692,-32359.2601361,0.00013391,2]
[383709112,1757097032705,-621.07596019,0.00013481,2]
[383709113,1757097032719,-300.0,0.00013497,2]
[383709114,1757097032732,-300.0,0.00013497,2]
[383709115,1757097032746,-300.0,0.00013497,2]
[383709116,1757097032756,-300.0,0.00013497,2]
[383709117,1757097032767,-300.0,0.00013497,2]
[383709118,1757097032777,-300.0,0.00013497,2]
[383709119,1757097032787,-300.0,0.00013497,2]
[383709120,1757097032801,-300.0,0.00013497,2]
[383709121,1757097032813,-300.0,0.00013497,2]
[383709122,1757097032828,-300.0,0.00013497,2]
[383709123,1757097032840,-300.0,0.00013497,2]
[383709124,1757097032851,-300.0,0.00013497,2]
[383709125,1757097032862,-300.0,0.00013497,2]
[383709126,1757097032873,-300.0,0.00013497,2]
[383709127,1757097032885,-300.0,0.00013497,2]
[383709128,1757097032898,-963.18808813,0.00013499,2]
[383709129,1757097032909,-151.0,0.000135,2]
[383709130,1757097032919,-751.36482598,0.000135,2]
[383709131,1757097032930,-500.0,0.00013501,2]
[383709132,1757097032941,-621.07596019,0.00013598,2]
[383709133,1757097032952,-18634.04076033,0.00013598,2]
[383709134,1757097032964,-1000.0,0.00013598,2]
[383709135,1757097032975,-500.0,0.00013673,2]
[383709136,1757097032986,-500.0,0.00013673,2]
[383709137,1757097032997,-500.0,0.00013673,2]
[383709138,1757097033007,-500.0,0.00013673,2]
[383709139,1757097033018,-480.0,0.00013698,2]
[383709140,1757097033030,-480.0,0.00013698,2]
[383709141,1757097033041,-480.0,0.00013698,2]
[383709142,1757097033052,-480.0,0.00013698,2]
[383709143,1757097033065,-480.0,0.00013698,2]
[383709144,1757097033076,-480.0,0.00013698,2]
[383709145,1757097033088,-480.0,0.00013698,2]
[383709146,1757097033100,-480.0,0.00013698,2]
[383709147,1757097033111,-480.0,0.00013698,2]
[383709148,1757097033122,-192.47779192,0.00013698,2]
[383709149,1757097033134,-480.0,0.00013698,2]
[383709150,1757097033145,-410.49221079,0.00013698,2]
[383709151,1757097033156,-480.0,0.00013698,2]
[383709152,1757097033167,-480.0,0.00013698,2]
[383709153,1757097033178,-481.09241571,0.00013698,2]
[383709154,1757097033189,-500.0,0.00013698,2]
[383709155,1757097033201,-500.0,0.00013698,2]
[383709156,1757097033212,-500.0,0.00013698,2]
[383709157,1757097033222,-500.0,0.00013698,2]
[383709158,1757097033234,-500.0,0.00013698,2]
[383709159,1757097033246,-574.5952162,0.00013698,2]
[383709160,1757097033257,-500.0,0.00013698,2]
[383709161,1757097033268,-500.0,0.00013698,2]
[383709162,1757097033279,-500.0,0.00013698,2]
[383709163,1757097033290,-500.0,0.00013698,2]
[383709164,1757097033301,-500.0,0.00013698,2]
[383709165,1757097033312,-500.0,0.00013698,2]
[383709166,1757097033323,-197.06,0.00013698,2]
[383709167,1757097033334,-480.0,0.00013698,2]
[383709168,1757097033345,-480.0,0.00013698,2]
[383709169,1757097033357,-480.0,0.00013698,2]
[383709170,1757097033368,-480.0,0.00013698,2]
[383709171,1757097033379,-480.0,0.00013698,2]
[383709172,1757097033390,-480.0,0.00013698,2]
[383709173,1757097033401,-480.0,0.00013698,2]
[383709174,1757097033412,-480.0,0.00013698,2]
[383709175,1757097033423,-480.0,0.00013698,2]
[383709176,1757097033434,-201.43408627,0.00013698,2]
[383709177,1757097033445,-480.0,0.00013698,2]
[383709178,1757097033461,-480.0,0.00013698,2]
[383709179,1757097033472,-480.0,0.00013698,2]
[383709180,1757097033482,-480.0,0.00013698,2]
[383709181,1757097033495,-480.0,0.00013698,2]
[383709182,1757097033506,-480.0,0.00013698,2]
[383709183,1757097033517,-480.0,0.00013698,2]
[383709184,1757097033528,-480.0,0.00013698,2]
[383709185,1757097033539,-480.0,0.00013698,2]
[383709186,1757097033551,-480.0,0.00013698,2]
[383709187,1757097033562,-480.0,0.00013698,2]
[383709188,1757097033574,-480.0,0.00013698,2]
[383709189,1757097033586,-480.0,0.00013698,2]
[383709190,1757097033597,-480.0,0.00013698,2]
[383709191,1757097033608,-480.0,0.00013698,2]
[383709192,1757097033621,-480.0,0.00013698,2]
[383709193,1757097033632,-480.0,0.00013698,2]
[383709194,1757097033644,-480.0,0.00013698,2]
[383709195,1757097033655,-480.59576693,0.00013698,2]
[383709196,1757097033666,-480.0,0.00013698,2]
[383709197,1757097033677,-483.54033185,0.00013698,2]
[383709198,1757097033688,-480.0,0.00013698,2]
[383709199,1757097033699,-480.0,0.00013698,2]
[383709200,1757097033711,-480.0,0.00013698,2]
[383709201,1757097033722,-480.0,0.00013698,2]
[383709202,1757097033733,-480.0,0.00013698,2]
[383709203,1757097033744,-480.0,0.00013698,2]
[383709204,1757097033754,-480.0,0.00013698,2]
[383709205,1757097033764,-480.0,0.00013698,2]
[383709206,1757097033774,-475.4696204,0.00013698,2]
[383709207,1757097033784,-480.0,0.00013698,2]
[383709208,1757097033794,-480.0,0.00013698,2]
[383709209,1757097034006,-480.0,0.00013698,2]
[383709210,1757097034022,-480.0,0.00013698,2]
[383709211,1757097034032,-482.20950326,0.00013698,2]
[383709212,1757097034042,-480.0,0.00013698,2]
[383709213,1757097034052,-480.32029745,0.00013698,2]
[383709214,1757097034061,-480.0,0.00013698,2]
[383709215,1757097034071,-480.0,0.00013698,2]
[383709216,1757097034081,-205.6111874,0.00013698,2]
[383709217,1757097034091,-480.0,0.00013698,2]
[383709218,1757097034101,-480.0,0.00013698,2]
[383709219,1757097034111,-480.0,0.00013698,2]
[383709220,1757097034120,-480.0,0.00013698,2]
[383709221,1757097034130,-480.0,0.00013698,2]
[383709222,1757097034140,-480.0,0.00013698,2]
[383709223,1757097034150,-480.0,0.00013698,2]
[383709224,1757097034160,-482.48719446,0.00013698,2]
[383709225,1757097034169,-480.0,0.00013698,2]
[383709226,1757097034179,-480.0,0.00013698,2]
[383709227,1757097034189,-480.0,0.00013698,2]
[383709228,1757097034199,-480.0,0.00013698,2]
[383709229,1757097034208,-480.0,0.00013698,2]
[383709230,1757097034218,-480.0,0.00013698,2]
[383709231,1757097034227,-480.0,0.00013698,2]
[383709232,1757097034236,-480.0,0.00013698,2]
[383709234,1757097034245,-480.0,0.00013698,2]
[383709235,1757097034255,-480.0,0.00013698,2]
[383709236,1757097034265,-480.0,0.00013698,2]
[383709237,1757097034274,-480.65220212,0.00013698,2]
[383709238,1757097034283,-480.0,0.00013698,2]
[383709239,1757097034293,-480.0,0.00013698,2]
[383709240,1757097034302,-480.0,0.00013698,2]
[383709241,1757097034312,-480.0,0.00013698,2]
[383709242,1757097034321,-480.0,0.00013698,2]
[383709243,1757097034331,-480.0,0.00013698,2]
[383709244,1757097034341,-480.0,0.00013698,2]
[383709245,1757097034351,-480.0,0.00013698,2]
[383709246,1757097034360,-492.66256254,0.00013698,2]
[383709247,1757097034370,-480.0,0.00013698,2]
[383709248,1757097034379,-481.03556,0.00013698,2]
[383709249,1757097034389,-480.0,0.00013698,2]
[383709250,1757097034399,-480.0,0.00013698,2]
[383709251,1757097034408,-480.0,0.00013698,2]
[383709252,1757097034419,-480.0,0.00013698,2]
[383709253,1757097034428,-480.0,0.00013698,2]
[383709254,1757097034438,-480.0,0.00013698,2]
[383709255,1757097034448,-480.0,0.00013698,2]
[383709256,1757097034459,-480.0,0.00013698,2]
[383709257,1757097034469,-480.0,0.00013698,2]
[383709258,1757097034479,-480.0,0.00013698,2]
[383709259,1757097034488,-480.0,0.00013698,2]
[383709260,1757097034499,-480.0,0.00013698,2]
[383709261,1757097034508,-480.0,0.00013698,2]
[383709262,1757097034518,-480.0,0.00013698,2]
[383709263,1757097034528,-480.0,0.00013698,2]
[383709264,1757097034538,-240.43166921,0.00013698,2]
[383709265,1757097034548,-480.0,0.00013698,2]
[383709266,1757097034557,-480.0,0.00013698,2]
[383709267,1757097034567,-480.0,0.00013698,2]
[383709268,1757097034577,-480.0,0.00013698,2]
[383709269,1757097034587,-480.0,0.00013698,2]
[383709270,1757097034595,-480.0,0.00013698,2]
[383709271,1757097034605,-480.0,0.00013698,2]
[383709272,1757097034614,-1000.0,0.00013698,2]
[383709273,1757097034624,-480.0,0.00013698,2]
[383709274,1757097034633,-480.0,0.00013698,2]
[383709275,1757097034642,-480.0,0.00013698,2]
[383709276,1757097034652,-480.0,0.00013698,2]
[383709277,1757097034662,-480.0,0.00013698,2]
[383709278,1757097034672,-480.0,0.00013698,2]
[383709279,1757097034681,-480.0,0.00013698,2]
[383709280,1757097034691,-480.0,0.00013698,2]
[383709281,1757097034700,-393.29378909,0.00013698,2]
[383709282,1757097034710,-480.0,0.00013698,2]
[383709283,1757097034719,-480.0,0.00013698,2]
[383709284,1757097034728,-480.0,0.00013698,2]
[383709285,1757097034737,-480.0,0.00013698,2]
[383709286,1757097034747,-480.0,0.00013698,2]
[383709287,1757097034757,-480.0,0.00013698,2]
[383709288,1757097034767,-480.0,0.00013698,2]
[383709289,1757097034778,-480.0,0.00013698,2]
[383709290,1757097034789,-480.0,0.00013698,2]
[383709291,1757097034799,-480.0,0.00013698,2]
[383709292,1757097034810,-480.0,0.00013698,2]
[383709293,1757097034821,-480.0,0.00013698,2]
[383709294,1757097034831,-480.0,0.00013698,2]
[383709295,1757097034840,-480.0,0.00013698,2]
[383709296,1757097034850,-480.0,0.00013698,2]
[383709297,1757097034860,-230.21652934,0.00013698,2]
[383709298,1757097034869,-480.0,0.00013698,2]
[383709299,1757097034879,-480.0,0.00013698,2]
[383709300,1757097034888,-480.0,0.00013698,2]
[383709301,1757097034898,-480.0,0.00013698,2]
[383709302,1757097034907,-480.0,0.00013698,2]
[383709303,1757097034917,-480.0,0.00013698,2]
[383709304,1757097034926,-480.0,0.00013698,2]
[383709305,1757097034936,-480.0,0.00013698,2]
[383709306,1757097034946,-480.0,0.00013698,2]
[383709307,1757097034955,-480.0,0.00013698,2]
[383709308,1757097034965,-480.0,0.00013698,2]
[383709309,1757097034974,-483.54588587,0.00013698,2]
[383709310,1757097034983,-480.0,0.00013698,2]
[383709311,1757097034992,-482.25450929,0.00013698,2]
[383709312,1757097035001,-480.0,0.00013698,2]
[383709313,1757097035011,-480.0,0.00013698,2]
[383709314,1757097035020,-480.0,0.00013698,2]
[383709315,1757097035029,-480.0,0.00013698,2]
[383709316,1757097035038,-480.0,0.00013698,2]
[383709317,1757097035047,-480.0,0.00013698,2]
[383709318,1757097035056,-480.0,0.00013698,2]
[383709319,1757097035065,-480.0,0.00013698,2]
[383709320,1757097035074,-480.0,0.00013698,2]
[383709321,1757097035083,-480.0,0.00013698,2]
[383709322,1757097035092,-480.0,0.00013698,2]
[383709323,1757097035101,-480.0,0.00013698,2]
[383709324,1757097035112,-480.0,0.00013698,2]
[383709325,1757097035121,-480.0,0.00013698,2]
[383709326,1757097035131,-480.0,0.00013698,2]
[383709327,1757097035141,-480.0,0.00013698,2]
[383709328,1757097035156,-480.0,0.00013698,2]